bitfinex/quotes_SOLUSD_20240829
["timestamp","ask_amount","ask_price","bid_price","bid_amount"]
[1724940443352,20.0,146.17,146.11,31.6154547]
[1724940443845,6.841,146.18,146.11,31.6154547]
[1724940444331,20.0,146.17,146.11,31.6154547]
[1724940444527,20.12549,146.17,146.11,31.6154547]
[1724940444837,20.12549,146.17,146.08,21.1096]
[1724940444838,45.0,146.16,146.08,21.1096]
[1724940445034,20.12549,146.15,146.08,21.1096]
[1724940445240,45.0,146.14,146.08,21.1096]
[1724940445435,0.12549,146.13,146.08,21.1096]
[1724940445753,0.25098,146.13,146.08,52.7250547]
[1724940445955,6.8441,146.11,146.04,15.6959]
[1724940446255,0.12549,146.1,146.05,32.98464157]
[1724940446450,27.09418,146.13,146.05,31.6154547]
[1724940446638,15.0314,146.15,146.07,31.6154547]
[1724940446639,6.8427,146.15,146.07,31.6154547]
[1724940446824,20.0,146.14,146.07,31.6154547]
[1724940447029,17.1031,146.18,146.07,31.6154547]
[1724940447030,20.0,146.17,146.07,31.6154547]
[1724940447248,6.8428,146.14,146.07,31.6154547]
[1724940447447,6.8423,146.15,146.08,1.36898048]
[1724940447749,20.0,146.14,146.08,1.36886737]
[1724940448134,0.12549,146.13,146.08,1.36886737]
[1724940448451,0.12549,146.13,146.09,31.6154547]
[1724940448638,0.12549,146.13,146.1,1.36869006]
[1724940448836,0.12549,146.13,146.09,31.6154547]
[1724940448837,6.8414,146.17,146.11,1.36871379]
[1724940449033,6.8414,146.17,146.09,31.6154547]
[1724940449233,6.8414,146.17,146.1,1.36858631]
[1724940449440,6.8414,146.17,146.09,31.6154547]
[1724940449630,6.8426,146.15,146.09,31.6154547]
[1724940449824,21.7183,146.19,146.07,31.6154547]
[1724940450030,6.8419,146.16,146.08,1.36883792]
[1724940450325,6.8423,146.15,146.09,1.36871425]
[1724940450543,6.8423,146.15,146.07,31.6154547]
[1724940450544,0.12549,146.14,146.08,1.36882898]
[1724940450739,45.25098,146.15,146.08,1.36882898]
[1724940450948,52.09318,146.15,146.07,31.6154547]
[1724940452358,52.09318,146.15,146.09,31.6154547]
[1724940452537,52.09318,146.15,146.1,1.36874216]
[1724940453680,6.8431,146.14,146.07,31.6154547]
[1724940453834,0.12549,146.13,146.07,31.6154547]
[1724940454235,0.12549,146.13,146.08,1.3687416]
[1724940454544,6.842,146.16,146.09,31.6154547]
[1724940455047,6.843,146.14,146.07,31.6154547]
[1724940455236,70.4352547,146.19,146.07,31.6154547]
[1724940455436,20.0,146.18,146.09,31.6154547]
[1724940455749,6.8414,146.17,146.1,1.36866172]
[1724940456059,6.8394,146.21,146.15,31.6154547]
[1724940456354,6.839,146.22,146.17,31.6154547]
[1724940456558,1.19192408,146.29,146.19,38.0171547]
[1724940456857,1.19192408,146.29,146.23,31.6154547]
[1724940456858,6.8357,146.29,146.23,31.6154547]
[1724940457062,6.8362,146.28,146.23,31.6154547]
[1724940457238,6.8358,146.29,146.21,31.6154547]
[1724940457442,64.7745547,146.34,146.23,31.6154547]
[1724940457752,6.8352,146.31,146.23,31.6154547]
[1724940457959,6.8358,146.29,146.23,31.6154547]
[1724940458156,33.1591,146.34,146.22,39.35114681]
[1724940458564,16.0752,146.34,146.24,39.35114681]
[1724940458766,6.8336,146.34,146.26,39.35114681]
[1724940459062,6.8338,146.33,146.27,1.36711539]
[1724940459251,253.2,146.38,146.27,1.36711539]
[1724940459561,6.8334,146.34,146.27,1.36711539]
[1724940459739,6.8334,146.34,146.26,39.35114681]
[1724940459943,6.8348,146.31,146.22,39.35114681]
[1724940460154,20.0,146.33,146.23,20.0]
[1724940460437,106.43134681,146.37,146.24,1.36731739]
[1724940460438,50.0,146.35,146.24,1.36731739]
[1724940460755,6.8354,146.3,146.2,55.76324681]
[1724940460963,65.12549,146.29,146.2,55.76324681]
[1724940461137,65.12549,146.29,146.21,1.36744159]
[1724940461334,0.12549,146.28,146.21,1.36757635]
[1724940461756,0.12549,146.28,146.22,1.3674922]
[1724940461939,0.12549,146.28,146.2,55.76324681]
[1724940462337,0.12549,146.28,146.21,1.36750344]
[1724940462538,6.96169,146.28,146.21,1.36750344]
[1724940462868,26.96239,146.27,146.2,16.4121]
[1724940463056,6.8377,146.25,146.19,6.4017]
[1724940463251,45.12549,146.24,146.16,55.55324681]
[1724940463451,45.25098,146.24,146.16,55.55324681]
[1724940463648,45.12549,146.24,146.17,1.36796429]
[1724940463847,20.0,146.29,146.18,39.35114681]
[1724940464057,6.8371,146.26,146.18,39.35114681]
[1724940464255,45.12549,146.25,146.18,39.35114681]
[1724940464455,45.12549,146.25,146.19,1.36774704]
[1724940464766,45.12549,146.25,146.2,39.35114681]
[1724940464767,0.12549,146.25,146.2,39.35114681]
[1724940465841,6.96309,146.25,146.2,39.35114681]
[1724940466040,0.12549,146.25,146.16,55.55324681]
[1724940466247,6.838,146.24,146.16,55.55324681]
[1724940466447,0.12549,146.23,146.16,55.55324681]
[1724940466646,6.96399,146.23,146.16,16.2021]
[1724940466891,6.96399,146.23,146.15,6.3352]
[1724940466892,6.96449,146.22,146.15,6.3352]
[1724940467174,45.12549,146.21,146.15,6.3352]
[1724940467471,0.12549,146.21,146.16,1.3681811]
[1724940467970,0.12549,146.21,146.15,6.3352]
[1724940468149,0.12549,146.21,146.12,55.50614681]
[1724940468349,45.12549,146.21,146.12,55.50614681]
[1724940468652,26.96539,146.2,146.12,55.50614681]
[1724940468859,0.12549,146.21,146.18,39.35114681]
[1724940469258,0.12549,146.21,146.16,39.35114681]
[1724940469573,0.12549,146.21,146.17,1.36797714]
[1724940469750,0.12549,146.21,146.14,39.35114681]
[1724940469954,6.96519,146.21,146.14,39.35114681]
[1724940470263,0.12549,146.2,146.14,39.35114681]
[1724940470461,0.12549,146.21,146.14,39.35114681]
[1724940470667,0.12549,146.21,146.15,1.36820003]
[1724940470977,35.74536796,146.61,146.18,39.35114681]
[1724940470978,21.841,146.29,146.18,39.35114681]
[1724940471467,6.8366,146.27,146.19,1.3677871]
[1724940471852,21.841,146.29,146.18,45.77784681]
[1724940472053,21.841,146.29,146.19,1.36787015]
[1724940472256,22.74,146.32,146.23,39.35114681]
[1724940472455,15.9056,146.32,146.24,1.367353]
[1724940472850,6.214,146.33,146.25,39.35114681]
[1724940473177,6.214,146.33,146.21,39.35114681]
[1724940473355,6.8352,146.3,146.22,1.36729247]
[1724940473561,6.8348,146.31,146.22,1.36729247]
[1724940473864,6.214,146.33,146.24,39.35114681]
[1724940474063,13.048,146.33,146.24,39.35114681]
[1724940474247,6.835,146.31,146.24,39.35114681]
[1724940474678,6.835,146.31,146.25,1.36733709]
[1724940474864,6.8343,146.32,146.24,39.35114681]
[1724940475571,0.25098,146.31,146.25,1.36733557]
[1724940475749,45.25098,146.31,146.25,1.36733557]
[1724940475949,45.25098,146.31,146.22,39.35114681]
[1724940476145,0.25098,146.31,146.23,1.36740297]
[1724940476363,0.25098,146.31,146.22,39.35114681]
[1724940476364,45.0,146.3,146.22,39.35114681]
[1724940476574,0.25098,146.29,146.22,39.35114681]
[1724940476771,0.12549,146.28,146.22,39.35114681]
[1724940476970,0.25098,146.31,146.2,39.35114681]
[1724940477155,6.8357,146.29,146.2,40.71862487]
[1724940477363,0.25098,146.31,146.19,15.0229]
[1724940477364,0.12549,146.28,146.22,39.35114681]
[1724940477562,0.12549,146.28,146.19,15.0229]
[1724940477563,6.214,146.33,146.24,39.35114681]
[1724940477760,6.214,146.33,146.25,1.36721794]
[1724940477972,6.8347,146.32,146.25,1.36721794]
[1724940478153,6.8347,146.32,146.24,39.35114681]
[1724940478574,6.8351,146.31,146.22,39.35114681]
[1724940478975,6.214,146.33,146.2,39.35114681]
[1724940479186,6.8362,146.28,146.21,20.0]
[1724940479370,0.25098,146.27,146.21,20.0]
[1724940479569,45.25098,146.27,146.22,1.36758168]
[1724940479874,6.214,146.33,146.22,40.71872849]
[1724940480075,6.8362,146.28,146.22,1.36749652]
[1724940480383,50.0,146.32,146.19,15.0229]
[1724940480682,16.531,146.29,146.19,15.0229]
[1724940480979,6.8379,146.25,146.18,6.4267]
[1724940481162,6.8386,146.23,146.16,39.35114681]
[1724940481364,0.25098,146.22,146.15,15.2853]
[1724940481676,0.12549,146.22,146.16,40.71915266]
[1724940481878,6.8365,146.28,146.19,39.35114681]
[1724940482064,65.25098,146.3,146.2,1.36763873]
[1724940482264,67.0904,146.29,146.19,39.35114681]
[1724940482473,15.9716,146.27,146.17,45.55524681]
[1724940482665,0.12549,146.28,146.19,39.35114681]
[1724940482868,6.96209,146.27,146.2,1.36774603]
[1724940483064,45.0,146.26,146.19,39.35114681]
[1724940483375,0.25098,146.25,146.2,1.3677805]
[1724940483724,0.12549,146.25,146.19,39.35114681]
[1724940483884,0.25098,146.25,146.19,39.35114681]
[1724940484587,0.25098,146.25,146.2,1.36778219]
[1724940484886,0.25098,146.25,146.19,39.35114681]
[1724940485270,0.25098,146.25,146.2,1.3678448]
[1724940486484,0.25098,146.25,146.19,39.35114681]
[1724940486668,0.25098,146.25,146.17,7.57188078]
[1724940486669,7.08858,146.25,146.17,7.57188078]
[1724940486865,45.0,146.24,146.16,39.35114681]
[1724940487060,0.25098,146.23,146.15,15.2853]
[1724940487579,6.8398,146.21,146.14,39.35114681]
[1724940487770,52.09098,146.2,146.14,39.35114681]
[1724940488083,52.09098,146.2,146.12,39.35114681]
[1724940488084,6.8405,146.19,146.12,39.35114681]
[1724940488274,45.12549,146.18,146.12,39.35114681]
[1724940488583,6.96639,146.18,146.12,39.35114681]
[1724940489087,45.0,146.17,146.1,39.35114681]
[1724940489258,0.12549,146.16,146.1,39.35114681]
[1724940489864,6.96729,146.16,146.1,40.7196904]
[1724940490081,45.12549,146.15,146.1,39.35114681]
[1724940490269,0.12549,146.16,146.1,39.35114681]
[1724940491078,6.96739,146.16,146.09,6.6547]
[1724940491286,45.12549,146.15,146.09,6.6547]
[1724940491498,0.12549,146.14,146.09,6.6547]
[1724940492282,0.12549,146.14,146.09,8.02345965]
[1724940492587,0.12549,146.14,146.06,55.50604681]
[1724940493083,0.12549,146.14,146.08,39.35114681]
[1724940494158,6.96829,146.14,146.08,39.35114681]
[1724940494473,45.12549,146.13,146.08,39.35114681]
[1724940494662,0.12549,146.12,146.08,39.35114681]
[1724940495159,15.192,146.18,146.08,39.35114681]
[1724940495485,0.12549,146.17,146.08,39.35114681]
[1724940495660,6.8421,146.16,146.08,39.35114681]
[1724940495985,52.09328,146.15,146.08,39.35114681]
[1724940496193,7.09328,146.15,146.08,39.35114681]
[1724940496670,0.25098,146.15,146.08,39.35114681]
[1724940496870,45.25098,146.15,146.08,39.35114681]
[1724940497088,52.09328,146.15,146.08,39.35114681]
[1724940497586,6.8428,146.14,146.08,39.35114681]
[1724940497786,52.09438,146.13,146.08,39.35114681]
[1724940498083,52.09438,146.13,146.06,55.50604681]
[1724940498286,45.25098,146.13,146.06,55.50604681]
[1724940498720,45.25098,146.13,146.08,39.35114681]
[1724940498869,7.09428,146.13,146.08,39.35114681]
[1724940499185,45.0,146.12,146.06,39.35114681]
[1724940499394,0.12549,146.11,146.07,1.36903254]
[1724940499573,0.12549,146.11,146.06,39.35114681]
[1724940499764,0.25098,146.11,146.06,39.35114681]
[1724940500083,0.25098,146.11,146.04,39.35114681]
[1724940500294,15.68,146.1,146.0,39.35114681]
[1724940500482,45.12549,146.09,146.0,39.35114681]
[1724940500665,0.12549,146.08,146.01,7.14710768]
[1724940500866,6.97139,146.08,146.01,7.14710768]
[1724940501087,1.1935406,146.12,146.01,7.14710768]
[1724940501088,1.1935406,146.12,146.06,55.32724681]
[1724940501392,29.2471,146.22,146.11,39.35114681]
[1724940501569,22.4077,146.22,146.17,39.35114681]
[1724940501966,16.3541,146.22,146.16,39.35114681]
[1724940502293,16.3541,146.22,146.14,39.35114681]
[1724940503782,45.0,146.21,146.14,39.35114681]
[1724940504504,16.3541,146.22,146.09,39.35114681]
[1724940504505,16.3541,146.22,146.17,39.35114681]
[1724940507170,0.25098,146.21,146.17,39.35114681]
[1724940507602,0.25098,146.21,146.19,39.35114681]
[1724940509698,0.25098,146.21,146.17,39.35114681]
[1724940510184,7.09048,146.21,146.15,39.35114681]
[1724940510377,52.09048,146.21,146.15,39.35114681]
[1724940510595,45.25098,146.21,146.15,39.35114681]
[1724940510897,45.25098,146.21,146.13,39.35114681]
[1724940511202,6.8407,146.19,146.11,39.35114681]
[1724940511373,45.25098,146.18,146.11,39.35114681]
[1724940511778,0.25098,146.18,146.11,39.35114681]
[1724940513811,0.25098,146.18,146.12,1.36867518]
[1724940514109,0.25098,146.18,146.11,40.71973979]
[1724940514484,0.25098,146.18,146.13,39.35114681]
[1724940515511,0.12549,146.18,146.13,39.35114681]
[1724940518413,0.12549,146.18,146.11,39.35114681]
[1724940518708,45.25098,146.19,146.11,39.35114681]
[1724940518887,6.8413,146.17,146.09,39.35114681]
[1724940519088,61.21618,146.16,146.09,39.35114681]
[1724940520199,16.21618,146.16,146.09,39.35114681]
[1724940520584,16.21618,146.16,146.11,39.35114681]
[1724940522892,16.21618,146.16,146.09,39.35114681]
[1724940523395,23.05798,146.16,146.09,39.35114681]
[1724940523702,16.21618,146.16,146.09,39.35114681]
[1724940524408,16.21618,146.16,146.05,39.35114681]
[1724940524409,45.0,146.15,146.05,39.35114681]
[1724940524614,6.8436,146.13,146.05,39.35114681]
[1724940524801,45.25098,146.12,146.05,39.35114681]
[1724940524983,0.25098,146.12,146.05,39.35114681]
[1724940525309,0.12549,146.13,146.09,39.35114681]
[1724940525513,45.25098,146.15,146.09,39.35114681]
[1724940526283,15.9652,146.16,146.1,1.36887843]
[1724940526494,15.9652,146.16,146.13,39.35114681]
[1724940526683,6.6356,146.18,146.13,39.35114681]
[1724940527022,16.0877,146.2,146.13,39.35114681]
[1724940527305,16.0877,146.2,146.15,39.35114681]
[1724940529905,0.12549,146.19,146.13,39.35114681]
[1724940530109,7.09148,146.19,146.09,16.0504]
[1724940530310,7.09148,146.19,146.11,39.35114681]
[1724940530517,7.09148,146.19,146.12,1.36854869]
[1724940530518,0.25098,146.19,146.12,1.36854869]
[1724940530690,45.25098,146.19,146.11,39.35114681]
[1724940531114,0.25098,146.19,146.13,39.35114681]
[1724940531415,0.12549,146.19,146.13,39.35114681]
[1724940531590,0.12549,146.19,146.15,39.35114681]
[1724940531791,0.12549,146.19,146.13,39.35114681]
[1724940532819,16.0877,146.2,146.15,39.35114681]
[1724940533320,16.0877,146.2,146.16,1.36823091]
[1724940533608,16.0877,146.2,146.15,39.35114681]
[1724940534190,16.0877,146.2,146.13,39.35114681]
[1724940535391,16.0877,146.2,146.15,39.35114681]
[1724940537291,0.12549,146.19,146.15,39.35114681]
[1724940537907,0.12549,146.19,146.13,39.35114681]
[1724940538093,0.25098,146.19,146.13,39.35114681]
[1724940538288,0.12549,146.19,146.13,39.35114681]
[1724940538917,0.25098,146.19,146.13,39.35114681]
[1724940539885,0.25098,146.19,146.09,55.40154681]
[1724940539886,0.25098,146.19,146.11,39.35114681]
[1724940540094,52.09148,146.19,146.11,39.35114681]
[1724940540400,0.25098,146.19,146.11,39.35114681]
[1724940541231,45.25098,146.19,146.11,39.35114681]
[1724940541525,52.09148,146.19,146.11,39.35114681]
[1724940541735,6.841,146.18,146.11,39.35114681]
[1724940541902,0.25098,146.17,146.11,39.35114681]
[1724940542302,0.12549,146.17,146.11,39.35114681]
[1724940542617,0.12549,146.17,146.13,39.35114681]
[1724940542819,16.0877,146.2,146.15,39.35114681]
[1724940543017,16.0877,146.2,146.17,39.35114681]
[1724940543231,23.0482,146.24,146.17,39.35114681]
[1724940543929,6.8386,146.23,146.17,39.35114681]
[1724940544627,6.8391,146.22,146.15,39.35114681]
[1724940544795,0.12549,146.21,146.15,39.35114681]
[1724940544992,45.0,146.22,146.15,39.35114681]
[1724940545205,0.12549,146.21,146.15,39.35114681]
[1724940545808,0.25098,146.22,146.13,39.35114681]
[1724940546121,6.8404,146.19,146.11,39.35114681]
[1724940546424,52.09188,146.18,146.11,39.35114681]
[1724940546596,45.25098,146.18,146.11,39.35114681]
[1724940546799,0.25098,146.18,146.12,1.36863977]
[1724940547008,0.25098,146.18,146.11,39.35114681]
[1724940547627,0.25098,146.19,146.11,39.35114681]
[1724940547826,7.09148,146.19,146.11,39.35114681]
[1724940548037,0.25098,146.19,146.11,39.35114681]
[1724940548224,0.25098,146.19,146.12,1.36844267]
[1724940548426,0.25098,146.19,146.13,39.35114681]
[1724940549608,7.09138,146.19,146.11,39.35114681]
[1724940550324,0.25098,146.19,146.11,39.35114681]
[1724940551130,52.09148,146.19,146.11,39.35114681]
[1724940551724,6.841,146.18,146.11,39.35114681]
[1724940551928,0.25098,146.17,146.11,39.35114681]
[1724940552810,0.12549,146.17,146.12,1.36861886]
[1724940554337,0.12549,146.17,146.11,39.35114681]
[1724940554532,0.25098,146.17,146.11,39.35114681]
[1724940554710,16.3961,146.16,146.11,39.35114681]
[1724940554910,0.12549,146.15,146.11,39.35114681]
[1724940555116,0.25098,146.15,146.11,39.35114681]
[1724940555316,0.25098,146.15,146.09,39.35114681]
[1724940557120,0.12549,146.15,146.11,39.35114681]
[1724940557912,16.3961,146.16,146.12,1.36858704]
[1724940558122,16.3961,146.16,146.13,39.35114681]
[1724940559934,16.3961,146.16,146.11,39.35114681]
[1724940560837,15.3899,146.2,146.15,39.35114681]
[1724940561528,6.5472,146.22,146.11,15.2376]
[1724940561529,16.571,146.24,146.18,39.35114681]
[1724940563130,23.409,146.24,146.18,39.35114681]
[1724940563820,0.12549,146.23,146.18,39.35114681]
[1724940564215,0.25098,146.23,146.18,39.35114681]
[1724940564738,0.25098,146.23,146.16,39.35114681]
[1724940564949,45.25098,146.23,146.14,39.35114681]
[1724940565122,15.0757,146.19,146.12,39.35114681]
[1724940565441,0.25098,146.18,146.12,39.35114681]
[1724940565950,0.25098,146.18,146.1,39.35114681]
[1724940566123,45.25098,146.18,146.1,39.35114681]
[1724940566325,52.09178,146.18,146.1,39.35114681]
[1724940566525,0.25098,146.18,146.11,1.36857214]
[1724940566833,0.25098,146.18,146.1,39.35114681]
[1724940567024,6.8414,146.17,146.1,39.35114681]
[1724940567227,0.25098,146.16,146.1,39.35114681]
[1724940567435,6.8418,146.16,146.1,39.35114681]
[1724940567646,45.25098,146.18,146.1,39.35114681]
[1724940567647,0.25098,146.15,146.1,39.35114681]
[1724940568146,0.25098,146.15,146.08,39.35114681]
[1724940569023,0.25098,146.15,146.06,39.35114681]
[1724940569024,21.5939,146.14,146.06,39.35114681]
[1724940569215,21.5939,146.14,146.04,39.35114681]
[1724940569216,45.25098,146.13,146.04,39.35114681]
[1724940570449,6.8441,146.11,146.04,39.35114681]
[1724940570615,0.25098,146.1,146.04,39.35114681]
[1724940570942,6.8454,146.09,146.02,39.35114681]
[1724940571259,15.8611,146.07,146.02,39.35114681]
[1724940571420,0.12549,146.06,146.02,39.35114681]
[1724940571917,0.12549,146.06,146.01,7.09571474]
[1724940572115,0.12549,146.06,146.01,12.94787807]
[1724940572842,0.25098,146.06,146.01,12.94787807]
[1724940573227,45.25098,146.06,146.01,12.94787807]
[1724940573417,45.25098,146.06,146.01,7.09571474]
[1724940573628,0.25098,146.06,146.01,7.09571474]
[1724940573945,0.25098,146.06,146.01,12.94787807]
[1724940574243,45.25098,146.06,146.01,12.94787807]
[1724940574438,0.25098,146.06,146.01,12.94787807]
[1724940575151,0.25098,146.06,146.01,7.09571474]
[1724940575349,45.25098,146.06,146.01,7.09571474]
[1724940576453,0.25098,146.06,146.01,7.09571474]
[1724940576953,22.2087,146.07,146.02,39.35114681]
[1724940577428,22.2087,146.07,146.04,39.35114681]
[1724940578370,22.559,146.11,146.06,39.35114681]
[1724940578529,22.559,146.11,146.08,39.35114681]
[1724940579045,22.559,146.11,146.06,39.35114681]
[1724940580138,0.12549,146.1,146.06,39.35114681]
[1724940581344,45.25098,146.1,146.02,39.35114681]
[1724940581847,6.8454,146.09,146.02,39.35114681]
[1724940582040,6.8465,146.06,146.01,7.09571474]
[1724940582355,51.82678,146.05,146.01,7.09571474]
[1724940582743,6.82678,146.05,146.01,7.09571474]
[1724940582943,15.7605,146.07,146.02,40.72080057]
[1724940583159,15.7605,146.07,146.02,39.35114681]
[1724940583345,0.12549,146.06,146.02,39.35114681]
[1724940584048,0.25098,146.06,146.02,39.35114681]
[1724940584251,0.12549,146.06,146.02,39.35114681]
[1724940584663,15.7605,146.07,146.04,39.35114681]
[1724940584966,15.7605,146.07,146.06,39.35114681]
[1724940585669,15.7605,146.07,146.04,39.35114681]
[1724940586545,21.9004,146.11,146.06,39.35114681]
[1724940588270,21.9004,146.11,146.04,39.35114681]
[1724940588271,0.25098,146.1,146.04,39.35114681]
[1724940589267,45.25098,146.1,146.02,39.35114681]
[1724940589638,45.25098,146.1,146.02,40.7205206]
[1724940590055,45.25098,146.1,146.02,39.35114681]
[1724940590871,45.25098,146.1,146.04,39.35114681]
[1724940591170,0.25098,146.1,146.04,39.35114681]
[1724940591350,0.25098,146.1,146.06,39.35114681]
[1724940591870,21.9004,146.11,146.06,39.35114681]
[1724940592771,21.9004,146.11,146.02,39.35114681]
[1724940592772,15.7814,146.11,146.08,39.35114681]
[1724940592944,21.7065,146.15,146.1,39.35114681]
[1724940593349,15.6517,146.15,146.1,39.35114681]
[1724940593550,15.6517,146.15,146.12,39.35114681]
[1724940593753,15.6517,146.15,146.1,39.35114681]
[1724940593959,15.6517,146.15,146.08,39.35114681]
[1724940595951,22.4941,146.15,146.08,39.35114681]
[1724940596150,0.25098,146.14,146.08,39.35114681]
[1724940597274,45.25098,146.14,146.06,39.35114681]
[1724940597974,52.09378,146.14,146.06,39.35114681]
[1724940598159,45.25098,146.14,146.06,39.35114681]
[1724940598755,0.25098,146.14,146.08,39.35114681]
[1724940599163,45.25098,146.14,146.08,39.35114681]
[1724940599367,0.25098,146.14,146.08,39.35114681]
[1724940599570,6.2092,146.18,146.12,39.35114681]
[1724940599854,15.8034,146.2,146.14,39.35114681]
[1724940601771,15.8034,146.2,146.15,1.36833236]
[1724940602073,15.8034,146.2,146.14,39.35114681]
[1724940603077,15.8034,146.2,146.12,39.35114681]
[1724940603374,0.25098,146.19,146.12,39.35114681]
[1724940603760,45.25098,146.19,146.12,39.35114681]
[1724940603961,52.09138,146.19,146.1,39.35114681]
[1724940604181,6.8412,146.18,146.1,39.35114681]
[1724940604479,0.25098,146.17,146.1,39.35114681]
[1724940604769,45.25098,146.17,146.08,39.35114681]
[1724940605072,15.4913,146.15,146.08,39.35114681]
[1724940605266,0.25098,146.14,146.08,39.35114681]
[1724940605470,15.4913,146.15,146.1,39.35114681]
[1724940605663,15.4913,146.15,146.11,1.36859237]
[1724940605975,15.4913,146.15,146.1,39.35114681]
[1724940606974,22.1707,146.18,146.12,39.35114681]
[1724940607175,22.1707,146.18,146.14,39.35114681]
[1724940608377,15.5468,146.22,146.16,39.35114681]
[1724940609081,22.3859,146.22,146.14,39.35114681]
[1724940609767,45.25098,146.21,146.14,39.35114681]
[1724940610982,6.8399,146.2,146.14,39.35114681]
[1724940611310,0.25098,146.19,146.14,39.35114681]
[1724940611872,0.12549,146.18,146.15,1.36836346]
[1724940612069,0.25098,146.2,146.15,1.36836346]
[1724940612070,0.12549,146.2,146.15,1.36836346]
[1724940612364,0.12549,146.21,146.15,1.36836346]
[1724940612574,15.5468,146.22,146.16,39.35114681]
[1724940612889,15.5468,146.22,146.13,39.35114681]
[1724940613074,22.3859,146.22,146.14,20.0]
[1724940613585,15.5468,146.22,146.15,39.35114681]
[1724940614186,7.09078,146.21,146.13,39.35114681]
[1724940614781,6.8405,146.19,146.13,39.35114681]
[1724940614978,45.0,146.2,146.11,39.35114681]
[1724940614979,0.12549,146.18,146.11,39.35114681]
[1724940615194,0.12549,146.18,146.13,39.35114681]
[1724940615564,6.8413,146.17,146.11,39.35114681]
[1724940615772,0.12549,146.16,146.11,39.35114681]
[1724940616460,0.12549,146.19,146.11,39.35114681]
[1724940616667,0.12549,146.19,146.13,39.35114681]
[1724940616879,0.25098,146.19,146.13,39.35114681]
[1724940617589,0.12549,146.19,146.14,1.36839898]
[1724940617787,22.3858,146.22,146.15,40.71930923]
[1724940617788,15.5468,146.22,146.15,40.71930923]
[1724940617990,15.5468,146.22,146.16,1.36819464]
[1724940618286,15.5468,146.22,146.15,39.35114681]
[1724940619069,22.3859,146.22,146.15,39.35114681]
[1724940619298,0.25098,146.21,146.15,39.35114681]
[1724940619496,0.12549,146.21,146.16,1.36809789]
[1724940619791,0.12549,146.21,146.15,39.35114681]
[1724940619980,0.25098,146.21,146.15,39.35114681]
[1724940620162,7.09038,146.21,146.15,39.35114681]
[1724940620367,6.84,146.2,146.13,39.35114681]
[1724940620568,0.25098,146.19,146.13,39.35114681]
[1724940620988,7.09178,146.19,146.11,39.35114681]
[1724940621183,7.09178,146.19,146.12,20.0]
[1724940621690,22.3861,146.22,146.15,39.35114681]
[1724940621895,22.3861,146.22,146.16,1.36821227]
[1724940621896,15.5468,146.22,146.16,1.36821227]
[1724940622071,15.5468,146.22,146.17,39.35114681]
[1724940623879,22.3859,146.22,146.15,39.35114681]
[1724940624079,22.3859,146.22,146.13,39.35114681]
[1724940624389,0.12549,146.21,146.15,39.35114681]
[1724940624777,0.25098,146.21,146.15,39.35114681]
[1724940625179,0.12549,146.21,146.15,39.35114681]
[1724940625706,0.12549,146.21,146.17,39.35114681]
[1724940625890,6.8371,146.27,146.17,39.35114681]
[1724940626093,6.8371,146.27,146.18,45.0]
[1724940626281,6.8371,146.26,146.19,39.35114681]
[1724940626473,21.4484,146.28,146.19,39.35114681]
[1724940626474,6.8367,146.27,146.19,39.35114681]
[1724940626681,6.8367,146.27,146.2,1.36775901]
[1724940627199,6.8367,146.27,146.19,39.35114681]
[1724940627498,6.8367,146.27,146.17,39.35114681]
[1724940627700,6.8367,146.27,146.18,1.36776077]
[1724940628177,6.8367,146.27,146.17,39.35114681]
[1724940628384,6.96279,146.26,146.17,39.35114681]
[1724940628707,45.0,146.25,146.17,39.35114681]
[1724940628996,0.12549,146.24,146.17,39.35114681]
[1724940629208,15.381,146.22,146.15,39.35114681]
[1724940629382,6.28048,146.21,146.13,39.35114681]
[1724940630071,45.0,146.2,146.13,39.35114681]
[1724940630271,0.25098,146.19,146.13,39.35114681]
[1724940630496,0.12549,146.19,146.14,1.36833534]
[1724940630685,0.12549,146.19,146.15,1.36821106]
[1724940630894,0.25098,146.2,146.15,1.36821106]
[1724940631077,0.25098,146.2,146.13,39.35114681]
[1724940631278,0.12549,146.2,146.15,39.35114681]
[1724940631475,6.0295,146.21,146.17,39.35114681]
[1724940632278,15.381,146.22,146.18,1.36798592]